Cogmind - Beta 13 @@@ ROGUE MODE // 2024.04.01 @ 21:29:41 Player: nllptrxc Result: Destroyed by D-53 Grenadier with Mini Grenade Launcher Performance ------------- Evolutions (0) 0 Regions Visited (2) 400 Robots Destroyed (36) 180 Value Destroyed (554) 554 Prototype IDs (0) 0 Alien Tech Used (0) 0 Bonus (0) 0 TOTAL SCORE: 1134 Bonus ------- None Cogmind --------- Core Integrity 0/250 Matter 271/300 Energy 91/100 System Corruption 1% Temperature Cool (0) Movement Treading (240) Ox1 Location -10/Mines Parts ------- > --- POWER (1) -------- (None) > --- PROPULSION (2) --- Improved Treads Improved Treads > --- UTILITY (2) ------ Huge Storage Unit Hardened Light Armor Plating > --- WEAPON (2) ------- (None) > --- INVENTORY (25) --- Light Ion Engine Light Treads Light Treads Light Treads Light Treads Flight Unit Flight Unit Flight Unit Flight Unit Flight Unit Huge Storage Unit Signal Interpreter Hardened Light Armor Plating Hardened Light Armor Plating Hardened Light Armor Plating Improved Light Armor Plating Authchip [Device] Authchip [Processor] Authchip [Processor] Beam Cannon Light Cannon Grenade Launcher Mining Laser Peak State ------------ > --- POWER ------------ Ion Engine > --- PROPULSION ------- Improved Treads Improved Treads > --- UTILITY ---------- Huge Storage Unit Improved Light Armor Plating > --- WEAPON ----------- Light Cannon Light Cannon > --- INVENTORY -------- Light Ion Engine Light Treads Light Treads Light Treads Light Treads Improved Treads Improved Treads Flight Unit Flight Unit Flight Unit Flight Unit Flight Unit Huge Storage Unit Signal Interpreter Hardened Light Armor Plating Hardened Light Armor Plating Hardened Light Armor Plating Hardened Light Armor Plating Authchip [Device] Authchip [Processor] Authchip [Processor] Beam Cannon Light Cannon Grenade Launcher Mining Laser [Rating: 15] Favorites ----------- Power Ion Engine Engine Ion Engine Propulsion Light Treads Treads Light Treads Utility Light Armor Plating Device Seismic Detector Storage Large Storage Unit Protection Light Armor Plating Weapon Light Cannon Energy Gun Small Laser Ballistic Gun Light Assault Rifle Ballistic Cannon Light Cannon Launcher Grenade Launcher Special Weapon Mining Laser Build | -11 -10 -10 ------- Run | Yrd Mat Min Slots Evolved . | . . . Power . | . . . Propulsion . | . . . Utility . | . . . Weapon . | . . . Parts Attached 28 | 7 15 6 Power 2 | 1 1 . Engine 2 | 1 1 . Core . | . . . Reactor . | . . . Propulsion 6 | 2 2 2 Treads 6 | 2 2 2 Leg . | . . . Wheel . | . . . Hover . | . . . Flight . | . . . Utility 7 | 2 3 2 Device 1 | 1 . . Storage 3 | 1 2 . Processor . | . . . Hackware . | . . . Protection 3 | . 1 2 Artifact . | . . . Weapon 13 | 2 9 2 Energy Gun 2 | 1 1 . Energy Cannon . | . . . Ballistic Gun 1 | 1 . . Ballistic Cannon 5 | . 4 1 Launcher 3 | . 2 1 Special Weapon 2 | . 2 . Impact Weapon . | . . . Slashing Weapon . | . . . Piercing Weapon . | . . . Special Melee Weapon . | . . . Unidentified Prototypes . | . . . Parts Lost 5 | . . 5 Power 1 | . . 1 Propulsion 2 | . . 2 Utility . | . . . Weapon 2 | . . 2 Highest Loss Streak 5 | . . 5 To Critical Strikes . | . . . Average Slot Usage (%) 99 | . 100 99 Engine 13 | . 14 13 Treads 28 | . 28 28 Device 3 | . 4 . Storage 14 | . 14 14 Protection 10 | . 9 14 Energy Gun 3 | . 4 . Ballistic Gun 3 | . 4 . Ballistic Cannon 20 | . 18 27 Naked Turns . | . . . Heaviest Build 96 | 11 94 96 Greatest Support 46 | 40 46 46 Greatest Overweight (x) 2 | . 2 2 Average Overweight (x) . | . . 1 Largest Inventory Capacity 25 | 8 25 25 Average Capacity 17 | 7 16 25 Most Carried 25 | 6 23 25 Average Carried 15 | 4 14 23 Final Capacity 25 | 8 25 25 Final Carried 23 | 6 23 23 Class Distribution -------------------- 100% | Mutant Dominant Class ---------------- Mutant | -10/Materials Mutant | -10/Mines Resources | -11 -10 -10 ----------- Run | Yrd Mat Min Matter Collected 1010 | 300 552 158 Remotely . | . . . Salvage Created 1046 | 255 648 143 Parts 70 | 27 38 5 Haulers Intercepted 2 | . 2 . Recyclers Shooed 5 | . 5 . Parts Field Recycled . | . . . Retrieved Matter . | . . . Parts Self-Destructed . | . . . Prevented . | . . . Kills | -11 -10 -10 ------- Run | Yrd Mat Min Combat Hostiles Destroyed 17 | . 11 6 Guns 2 | . 2 . Cannons 10 | . 4 6 AOE 5 | . 5 . Classes Destroyed 8 | 2 6 . Worker 1 | . 1 . Builder 1 | . 1 . Tunneler 9 | 9 . . Hauler 2 | . 2 . Recycler 5 | 1 4 . Watcher 1 | . 1 . Swarmer 8 | . 6 2 Grunt 9 | . 5 4 Best Kill Streak 4 | 4 4 3 Combat Bots Only 3 | . 3 3 Max Kills in Single Turn 2 | 1 2 1 Gunslinging . | . . . Exploded 2 | . 2 . Melee . | . . . Uniques/NPCs Destroyed . | . . . Combat | -11 -10 -10 -------- Run | Yrd Mat Min Hostile Shots Fired 98 | . 37 61 Missed 25 | . 13 12 Damage Taken 1507 | . 283 1224 Core 258 | . 50 208 Absorbed by Shields . | . . . Core Remaining (%) 100 | 100 . . Volleys Fired 109 | 30 59 20 Largest 2 | 2 2 2 Hottest 100 | 60 100 70 Shots Fired 205 | 58 109 38 Gun 128 | 58 70 . Cannon 68 | . 30 38 Launcher 4 | . 4 . Special 5 | . 5 . Kinetic 133 | 30 65 38 Thermal 68 | 28 40 . Explosive 4 | . 4 . Electromagnetic . | . . . Robot Hit Streak 20 | 9 20 7 Robot Miss Streak 7 | 2 7 3 Penetration Max . | . . . Secondary Targets . | . . . Shots Hit Robots 115 | 33 57 25 Core Hits 53 | 14 31 8 Critical Kills . | . . . Critical Parts Destroyed . | . . . Critical Strikes 2 | . . 2 Blast 2 | . . 2 Melee Attacks . | . . . Impact . | . . . Slashing . | . . . Piercing . | . . . Sneak Attacks . | . . . Combat Hostiles . | . . . Follow-up Attacks . | . . . Damage Inflicted 1840 | 343 1044 453 Guns 787 | 343 444 . Cannons 722 | . 269 453 Explosions 331 | . 331 . Melee . | . . . Ramming . | . . . Kinetic 1002 | 122 427 453 Thermal 507 | 221 286 . Explosive 331 | . 331 . Electromagnetic . | . . . Impact . | . . . Slashing . | . . . Piercing . | . . . Highest Corruption 1 | . 1 1 Average Corruption 1 | . 1 1 Corruption Purged . | . . . Corruption Blocked . | . . . Effects 8 | . 7 1 Matter Fused 1 | . 1 . Heat Flow Errors 2 | . 2 . Energy Discharges 2 | . 2 . Data Loss (minor) 1 | . 1 . Data Loss (major) 1 | . . 1 Alerts 1 | . 1 . Overload Shots . | . . . Overflow Damage . | . . . Projectiles . | . . . Explosions . | . . . Melee . | . . . Knockbacks 7 | . 2 5 Impact . | . . . Kinetic 7 | . 2 5 Secondary . | . . . Self-Inflicted Damage 11 | . 11 . Shots 1 | . 1 . Rammed . | . . . Targets Rammed . | . . . Kicked . | . . . Crushed . | . . . Highest Temperature 222 | 40 222 153 Average Temperature 46 | 22 47 66 Received Heat Transfer 240 | . 120 120 Siege Activations . | . . . Robots Corrupted . | . . . Combat Hostiles . | . . . Parts Fried . | . . . Impact Corruptions . | . . . Robots Melted . | . . . Combat Hostiles . | . . . Parts Melted 1 | . 1 . Heat Transferred 1150 | 500 650 . Parts Sabotaged . | . . . Parts Stolen . | . . . Parts Stripped . | . . . Power Chain Reactions . | . . . Alert | -11 -10 -10 ------- Run | Yrd Mat Min Peak Influence 214 | 50 214 187 Initial 32 | . 32 7 Average 68 | 21 81 55 Maximum Alert Level 1 | . 1 . Low Security (%) 98 | 100 97 100 Level 1 1 | . 2 . Level 2 . | . . . Level 3 . | . . . Level 4 . | . . . Level 5 . | . . . High Security . | . . . Max Security . | . . . Squads Dispatched 2 | . 1 1 Investigation 2 | . 1 1 Extermination . | . . . Reinforcement . | . . . Assault . | . . . Garrison . | . . . Intercept . | . . . Searches Triggered . | . . . Construction Impeded . | . . . Haulers Reinforced . | . . . Active Scanning Responses . | . . . Cargo Convoy Interrupts . | . . . Stealth | -11 -10 -10 --------- Run | Yrd Mat Min Distress Signals 1 | . 1 . Communications Jammed . | . . . Distress Signals . | . . . Times Spotted 45 | . 25 20 Peak Tracking Total 10 | . 4 10 Tactical Retreats 2 | . . 2 Traps | -11 -10 -10 ------- Run | Yrd Mat Min Traps Triggered 2 | . 2 . Indirectly . | . . . Trap Hack Attempts . | . . . Triggered . | . . . Disarmed . | . . . Reprogrammed . | . . . Reused . | . . . Traps Extracted . | . . . Installed . | . . . Triggered . | . . . Machines | -11 -10 -10 ---------- Run | Yrd Mat Min Machines Disabled 1 | . 1 . Max in Single Turn 1 | . 1 . Machines Repaired . | . . . Machines Dismantled . | . . . Machines Sabotaged . | . . . Overloaded Fab Kills . | . . . Hacking | -11 -10 -10 --------- Run | Yrd Mat Min Machines Accessed 8 | . 7 1 Terminals 7 | . 7 . Fabricators . | . . . Repair Stations . | . . . Recycling Units . | . . . Scanalyzers . | . . . Garrison Access . | . . . Total Hacks 19 | . 18 1 Successful 10 | . 9 1 Failed 9 | . 9 . Catastrophic 1 | . 1 . Database Lockouts . | . . . Manual 16 | . 16 . Terminals 18 | . 18 . Fabricators . | . . . Repair Stations . | . . . Recycling Units . | . . . Scanalyzers . | . . . Garrison Access . | . . . Terminal Hacks 4 | . 3 1 Part Schematic 1 | . 1 . Open Door 1 | . . 1 Terminal Index 1 | . 1 . Registered Components 1 | . 1 . Fabricator Hacks . | . . . Repair Station Hacks . | . . . Recycling Unit Hacks . | . . . Scanalyzer . | . . . Garrison Access Hacks . | . . . Unauthorized Hacks 6 | . 6 . Terminals 6 | . 6 . Assimilate 2 | . 2 . Botnet 3 | . 3 . Operators 1 | . 1 . Fabricators . | . . . Repair Stations . | . . . Recycling Units . | . . . Scanalyzers . | . . . Garrison Access . | . . . Data Cores Recovered . | . . . Used . | . . . Hacking Detections 6 | . 6 . Full Trace Events . | . . . Feedback Events . | . . . Feedback Blocked . | . . . Robot Schematics Acquired . | . . . Robots Built . | . . . Authchips . | . . . Time . | . . . Total Robot Build Rating . | . . . Part Schematics Acquired 1 | . 1 . Parts Built . | . . . Authchips . | . . . Time . | . . . Total Part Build Rating . | . . . Parts Repaired . | . . . Time . | . . . Parts Recycled . | . . . Recycled Matter . | . . . Retrieved Matter . | . . . Retrieved Components . | . . . Parts Scanalyzed . | . . . Part Schematics Acquired . | . . . Parts Damaged . | . . . Bothacking | -11 -10 -10 ------------ Run | Yrd Mat Min Used RIF Installer . | . . . Robots Hacked . | . . . Non-combat . | . . . Combat . | . . . Robot Hacks Applied . | . . . Relay Couplers Released . | . . . Fabnet Peak Effective % . | . . . Robots Rewired . | . . . Allies Hacked . | . . . Hacks Repelled . | . . . Allies | -11 -10 -10 -------- Run | Yrd Mat Min Total Allies 1 | . 1 . Largest Group 1 | . 1 1 Highest-Rated Group 10 | . 10 10 Highest-Rated Ally 10 | . 10 10 Total Orders 2 | . . 2 STAY 1 | . . 1 FOLLOW 1 | . . 1 Ally Attacks . | . . . Total Damage . | . . . Kills . | . . . Allies Corrupted . | . . . Allies Melted . | . . . Intel | -11 -10 -10 ------- Run | Yrd Mat Min Robot Analysis Total . | . . . Derelict Logs Recovered . | . . . Drone Launches . | . . . Drone Recoveries . | . . . Exploration | -11 -10 -10 ------------- Run | Yrd Mat Min Turns Passed 2820 | 378 1882 560 Spaces Moved 1171 | 178 842 151 Core 4 | 4 . . Treads 1167 | 174 842 151 Legs . | . . . Wheels . | . . . Hover . | . . . Flight . | . . . Fastest Speed 50 | 50 160 240 Average Speed 199 | 157 186 319 Slowest Speed 320 | 160 320 320 Overloaded Moves . | . . . Propulsion Burnouts . | . . . Robots Hopped . | . . . Cave-ins Triggered . | . . . Exploration Rate (%) 46 | 9 98 32 Regions Visited 2 Branch Regions 1 Pre-discovered Areas 1 | . . 1 Known Exits Taken . | . . . Unknown Exits Taken 2 | 1 1 . Scrap Searched . | . . . Spaces Dug 5 | . 5 . Terrain Destroyed 27 | . 27 . Melee . | . . . Projectile 5 | . 5 . AOE 22 | . 22 . Terrain Rammed . | . . . Walls Destroyed . | . . . Machines Disabled . | . . . Actions | -11 -10 -10 --------- Run | Yrd Mat Min Total 1452 | 220 1042 190 Wait 91 | . 81 10 Move 1169 | 177 841 151 Hop . | . . . Pick Up 37 | 6 29 2 Fast Attach 7 | 7 . . Attach 2 | . . 2 Detach . | . . . Swap 19 | . 15 4 Drop 18 | . 17 1 Fire 109 | 30 59 20 Melee . | . . . Ram . | . . . Kick . | . . . Crush . | . . . Escape Stasis . | . . . Rewire . | . . . Trap . | . . . Miscellaneous . | . . . Route ------- -11/Scrapyard -10/Materials (discovered 4 exits: [*Mat x3] / *Min) -10/Mines (discovered 1 exit: [*Mat]) History --------- Turn | Location | Event 8 | -11/Scrapyard | Discovered new exit (range 15) 379 | -11/Scrapyard | Entered Materials 380 | -10/Materials | Build established: Mutant 579 | -10/Materials | Discovered new exit (range 4) 728 | -10/Materials | Discovered new exit (range 12) 1154 | -10/Materials | Discovered new exit (range 9) 1875 | -10/Materials | Discovered new exit (range 4) 2261 | -10/Materials | Entered Mines 2261 | -10/Mines | Accompanied by 1 ally 2262 | -10/Mines | Learned location of Storage (-7) 2665 | -10/Mines | Met a Derelict shopkeep closing up shop 2762 | -10/Mines | Discovered new exit (range 6) 2798 | -10/Mines | Assembled infested the area 2805 | -10/Mines | Core integrity fell below 50% 2818 | -10/Mines | Core integrity fell below 20% 2821 | -10/Mines | Destroyed by D-53 Grenadier with Mini Grenade Launcher Last Messages --------------- 02811_ as-08127 destroyed. 02812_ The unstable cave ceiling collapses. 02812_ as-31719 destroyed. 02812_ as-99987 destroyed. 02812_ K-01 Serf collects debris. 02813_ The unstable cave ceiling collapses. 02813_ Imp. Treads destroyed. 02814_ The unstable cave ceiling collapses. 02815_ as-92218 destroyed. 02815_ as-72949 destroyed. 02816_ K-01 Serf collects debris. 02817_ The unstable cave ceiling collapses. 02817_ Lgt. Cannon destroyed. 02817_ Imp. Treads destroyed. 02817_ Ion Engine destroyed. 02818_ The unstable cave ceiling collapses. 02818_ U-05 Engineer lays Concrete. 02819_ as-04934 destroyed. 02819_ K-01 Serf collects debris. 02820_ U-05 Engineer lays Concrete. Map ----- +----------------------------------------------------+ | #%% ### ##??????????? #???????????????? | | ####### ##?## ##???????? ? #??????????????? | | ??????####???# #???????# ??????????????? | | ?????????????# #????### ??????????????? | | ?????????????# ##### #?????????????????? | | ?????????????# #??????????????????? | | ????????????## ##### #??????????????????? | | ?????????#### #????# #??????????????????? | | ?????##### #?????### ##??????????????????? | | ????##""## #??????## ##??????????????????? | | ????#"!! # ##????### #??????????????????? | | ????#"! #????## #??????????????????? | | ????#"] #????# #??????????????????? | | ????#"[! #X % ###### #???????????????????? | | ????##""## ##??????????????????? | | ?????####### % ##?????????????????? | | ???????????## #### %*% ##????????????????? | | ????????????## ##?# #????????????????? | | ?????????????####??# ## #????????????????? | | ???????????????????# #### ##???????????????? | | ???????????????????## ####! ##??????????????? | | ????????????????????## # #|u! ###????????????? | | ???????????????????### d !| ##???????????? | | ??????????????????## ####????????? | | ?????????????????##